fUST/lending_fUST_20260101
["ID","MTS","AMOUNT","RATE_DAILY","PERIOD"]
[400252253,1767222640707,-500.0,0.00022465,2]
[400252255,1767222640716,-1965.69402544,0.00022465,2]
[400252257,1767222640727,-897.23597456,0.00022465,2]
[400252259,1767222640736,-500.0,0.00022465,2]
[400252261,1767222640745,-500.0,0.00022465,2]
[400252263,1767222640754,-642.81,0.00022465,2]
[400252265,1767222640763,-500.0,0.00022465,2]
[400252267,1767222640773,-500.0,0.00022465,2]
[400252268,1767222640782,-500.0,0.00022739,2]
[400252270,1767222640791,-500.0,0.00022739,2]
[400252272,1767222640800,-500.0,0.00022739,2]
[400252274,1767222640809,-572.76,0.00022739,2]
[400252276,1767222640818,-2207.72,0.00022739,2]
[400252278,1767222640827,-285.08395132,0.00022739,2]
[400252280,1767222640838,-2862.93,0.00022739,2]
[400252282,1767222640849,-500.0,0.00022739,2]
[400252283,1767222640858,-500.0,0.00022739,2]
[400252285,1767222640867,-642.81,0.00022739,2]
[400252287,1767222640876,-500.0,0.00022739,2]
[400252289,1767222640887,-500.0,0.00022739,2]
[400252291,1767222640896,-250.55,0.00022739,2]
[400252293,1767222640905,-2164.160111,0.00022944,2]
[400252294,1767222640915,-2029.7963151,0.00022944,2]
[400252296,1767222640924,-500.0,0.00022999,2]
[400252298,1767222640934,-500.0,0.00022999,2]
[400252300,1767222640943,-520.50114922,0.00022999,2]
[400252301,1767222640953,-500.0,0.00022999,2]
[400252302,1767222640962,-500.0,0.00022999,2]
[400252303,1767222640972,-500.0,0.00022999,2]
[400252304,1767222640981,-500.0,0.00022999,2]
[400252305,1767222640991,-500.0,0.00022999,2]
[400252306,1767222641000,-500.0,0.00022999,2]
[400252307,1767222641009,-300.92728864,0.00022999,2]
[400252308,1767222641019,-500.0,0.00022999,2]
[400252309,1767222641029,-500.0,0.00022999,2]
[400252310,1767222641038,-25088.57757907,0.00023,30]
[400252375,1767222641924,-1083.25252739,0.00023,30]
[400252377,1767222641936,-1833.34169242,0.00023,30]
[400252427,1767222645120,-27574.26871876,0.00023,30]
[400252429,1767222645129,-2809.5265286,0.00023,2]
[400252431,1767222645142,-2080.75000043,0.00023,2]
[400252434,1767222646259,-2455.38369134,0.00023,2]
[400252435,1767222652523,718.71577,0.00013699,2]
[400252437,1767222680840,150.0,0.00013822,2]
[400252442,1767222693116,73651.01686214,0.00011745,2]
[400252443,1767222693149,36630.80203716,0.00011745,2]
[400252490,1767223246148,172.12,0.0001,2]
[400252491,1767223248018,172.12,0.000102,2]
[400252492,1767223250072,172.12,0.000104,2]
[400252493,1767223251951,172.12,0.000106,2]
[400252494,1767223253846,172.12,0.000108,2]
[400252500,1767223453350,5000.0,0.00010954,2]
[400252501,1767223456648,176.0,7.9e-07,2]
[400252502,1767223457845,176.0,7.9e-07,2]
[400252503,1767223458688,176.0,7.9e-07,2]
[400252504,1767223476327,5000.0,0.00010954,2]
[400252505,1767223499461,5000.0,0.00010954,2]
[400252506,1767223522166,5000.0,0.00010954,2]
[400252509,1767223544508,5000.0,0.00010954,2]
[400252511,1767223560849,5000.0,0.00010954,2]
[400252513,1767223584640,5000.0,0.00010954,2]
[400252514,1767223607120,1221.57539079,0.00010954,2]
[400252515,1767223628137,-5000.0,0.00011167,2]
[400252516,1767223628164,-150.0,0.0001128,2]
[400252517,1767223628185,-580.0,0.00011395,2]
[400252518,1767223628209,-160.114,0.0001151,2]
[400252519,1767223628231,-120.74470271,0.00011742,2]
[400252520,1767223644080,-320.72344591,0.00011625,2]
[400252521,1767223648075,-1014.28285487,0.00011625,2]
[400252522,1767223652095,-391.89007346,0.00011625,2]
[400252525,1767223710608,1000.0,0.0001,2]
[400252527,1767223745120,-3273.10362576,0.00011625,2]
[400252528,1767223745143,-180.0,0.00011642,2]
[400252529,1767223745173,-57459.76404414,0.00011643,2]
[400252630,1767223832854,-112.69809499,0.00011509,2]
[400252632,1767223832865,-338.05925145,0.00011509,2]
[400252634,1767223832876,-4549.24265356,0.00011509,2]
[400252636,1767223832885,-582.0,0.00011509,2]
[400252638,1767223832894,-150.0,0.00011576,2]
[400252640,1767223832904,-300.0,0.00011642,2]
[400252642,1767223832913,-300.0,0.00011642,2]
[400252644,1767223832922,-300.0,0.00011642,2]
[400252646,1767223832931,-24926.64300898,0.00011643,2]
[400252648,1767223832942,-858.12873,0.00011643,2]
[400252663,1767223838165,-800.04634813,0.00011643,2]
[400252666,1767223838227,-26029.62281837,0.00011643,2]
[400252670,1767223838471,-43.54334149,0.00011643,2]
[400252671,1767223838483,-22320.21664996,0.00011643,2]
[400252705,1767223840430,-3886.74185346,0.00011526,2]
[400252706,1767223840493,-1113.25814654,0.00011526,2]
[400252707,1767223840503,-31.35071548,0.00011643,2]
[400252849,1767224386105,3593.34910331,0.00011,3]
[400252851,1767224463109,5000.0,0.00010954,2]
[400252852,1767224479563,233.94,0.00010954,2]
[400252853,1767224487393,5000.0,0.00010954,2]
[400252854,1767224510409,5000.0,0.00010954,2]
[400252855,1767224533759,5000.0,0.00010954,2]
[400252857,1767224557184,5000.0,0.00010954,2]
[400252858,1767224579896,5000.0,0.00010954,2]
[400252913,1767224602899,5000.0,0.00010954,2]
[400252932,1767224625850,5000.0,0.00010954,2]
[400252948,1767224649177,5000.0,0.00010954,2]
[400252985,1767224672256,5000.0,0.00010954,2]
[400252987,1767224694825,5000.0,0.00010954,2]
[400252997,1767224718417,5000.0,0.00010954,2]
[400253019,1767224741952,5000.0,0.00010954,2]
[400253020,1767224748112,-171.25362897,0.00011028,2]
[400253021,1767224748133,-150.0,0.00011128,2]
[400253022,1767224748153,-16.19482011,0.00011285,2]
[400253030,1767224777769,742.3534259,0.0001075,2]
[400253032,1767224846091,-5000.0,0.00011172,2]
[400253033,1767224846112,-571.02996089,0.00011285,2]
[400253034,1767224846132,-150.0,0.00011414,2]
[400253035,1767224846152,-151.0,0.000115,2]
[400253036,1767224846173,-300.0,0.00011541,2]
[400253037,1767224846196,-439.67161504,0.00011542,2]
[400253038,1767224846216,-4034.62382342,0.00011542,2]
[400253041,1767224945084,-1026.1776,0.00011426,2]
[400253042,1767224965098,-3973.8224,0.00011426,2]
[400253043,1767224965121,-198.73641632,0.00011541,2]
[400253044,1767224965142,-500.0,0.00011541,2]
[400253045,1767224965162,-500.0,0.00011541,2]
[400253046,1767224965183,-489.96904898,0.00011541,2]
[400253047,1767224965206,-500.0,0.00011541,2]
[400253048,1767224965231,-500.0,0.00011541,2]
[400253049,1767224965252,-500.0,0.00011541,2]
[400253050,1767224965271,-500.0,0.00011541,2]
[400253051,1767224965292,-500.0,0.00011541,2]
[400253052,1767224965313,-500.0,0.00011541,2]
[400253053,1767224965333,-500.0,0.00011541,2]
[400253054,1767224965353,-400.39166141,0.00011541,2]
[400253055,1767224965374,-500.0,0.00011541,2]
[400253056,1767224965394,-500.0,0.00011541,2]
[400253057,1767224965414,-500.0,0.00011541,2]
[400253058,1767224965435,-500.0,0.00011541,2]
[400253059,1767224965456,-500.0,0.00011541,2]
[400253060,1767224965476,-500.0,0.00011541,2]
[400253061,1767224965496,-500.0,0.00011541,2]
[400253062,1767224965643,-500.0,0.00011541,2]
[400253063,1767224965666,-500.0,0.00011541,2]
[400253064,1767224965687,-500.0,0.00011541,2]
[400253065,1767224965709,-500.0,0.00011541,2]
[400253066,1767224965731,-500.0,0.00011541,2]
[400253067,1767224965753,-500.0,0.00011541,2]
[400253068,1767224965774,-500.0,0.00011541,2]
[400253069,1767224965795,-500.0,0.00011541,2]
[400253070,1767224965820,-500.0,0.00011541,2]
[400253071,1767224965840,-500.0,0.00011541,2]
[400253072,1767224965862,-500.0,0.00011541,2]
[400253073,1767224965883,-500.0,0.00011541,2]
[400253074,1767224965905,-500.0,0.00011541,2]
[400253075,1767224965926,-500.0,0.00011541,2]
[400253076,1767224965947,-500.0,0.00011541,2]
[400253077,1767224965971,-500.0,0.00011541,2]
[400253078,1767224965995,-500.0,0.00011541,2]
[400253079,1767224966016,-500.0,0.00011541,2]
[400253080,1767224966036,-500.0,0.00011541,2]
[400253081,1767224966057,-500.0,0.00011541,2]
[400253082,1767224966078,-500.0,0.00011541,2]
[400253083,1767224966098,-500.0,0.00011541,2]
[400253084,1767224966118,-500.0,0.00011541,2]
[400253085,1767224966140,-500.0,0.00011541,2]
[400253086,1767224966160,-500.0,0.00011541,2]
[400253087,1767224966180,-500.0,0.00011541,2]
[400253088,1767224966201,-500.0,0.00011541,2]
[400253089,1767224966222,-500.0,0.00011541,2]
[400253090,1767224966242,-500.0,0.00011541,2]
[400253091,1767224966263,-500.0,0.00011541,2]
[400253092,1767224966284,-500.0,0.00011541,2]
[400253093,1767224966304,-500.0,0.00011541,2]
[400253094,1767224966326,-239.20072063,0.00011541,2]
[400253095,1767224966362,-500.0,0.00011541,2]
[400253096,1767224966386,-500.0,0.00011541,2]
[400253097,1767224966409,-500.0,0.00011541,2]
[400253098,1767224966432,-500.0,0.00011541,2]
[400253099,1767224966457,-500.0,0.00011541,2]
[400253100,1767224966480,-500.0,0.00011541,2]
[400253101,1767224966504,-500.0,0.00011541,2]
[400253102,1767224966528,-625.86394434,0.00011541,2]
[400253103,1767224966551,-500.0,0.00011541,2]
[400253104,1767224966573,-500.0,0.00011541,2]
[400253105,1767224966596,-446.43496832,0.00011541,2]
[400253106,1767224969134,-5000.0,0.00011312,2]
[400253107,1767224969157,-53.56503168,0.00011541,2]
[400253108,1767224969180,-500.0,0.00011541,2]
[400253109,1767224969202,-500.0,0.00011541,2]
[400253110,1767224969223,-500.0,0.00011541,2]
[400253111,1767224969243,-500.0,0.00011541,2]
[400253112,1767224969264,-500.0,0.00011541,2]
[400253113,1767224969286,-500.0,0.00011541,2]
[400253114,1767224969308,-500.0,0.00011541,2]
[400253115,1767224969330,-500.0,0.00011541,2]
[400253116,1767224969352,-31.08324468,0.00011541,2]
[400253129,1767225032359,-5000.0,0.00011425,2]
[400253131,1767225032368,-300.0,0.0001154,2]
[400253133,1767225032378,-468.91675532,0.00011541,2]
[400253135,1767225032387,-500.0,0.00011541,2]
[400253137,1767225032397,-500.0,0.00011541,2]
[400253138,1767225032406,-500.0,0.00011541,2]
[400253140,1767225032415,-500.0,0.00011541,2]
[400253143,1767225032426,-500.0,0.00011541,2]
[400253145,1767225032435,-500.0,0.00011541,2]
[400253147,1767225032444,-500.0,0.00011541,2]
[400253149,1767225032453,-500.0,0.00011541,2]
[400253151,1767225032462,-501.10570596,0.00011541,2]
[400253152,1767225032471,-500.0,0.00011541,2]
[400253154,1767225032481,-500.0,0.00011541,2]
[400253156,1767225032490,-500.0,0.00011541,2]
[400253158,1767225032499,-500.0,0.00011541,2]
[400253160,1767225032509,-500.0,0.00011541,2]
[400253162,1767225032518,-500.0,0.00011541,2]
[400253164,1767225032528,-500.0,0.00011541,2]
[400253166,1767225032538,-500.0,0.00011541,2]
[400253168,1767225032547,-500.0,0.00011541,2]
[400253170,1767225032556,-500.0,0.00011541,2]
[400253172,1767225032566,-500.0,0.00011541,2]
[400253173,1767225032575,-500.0,0.00011541,2]
[400253175,1767225032584,-500.0,0.00011541,2]
[400253177,1767225032594,-500.0,0.00011541,2]
[400253179,1767225032603,-500.0,0.00011541,2]
[400253181,1767225032613,-500.0,0.00011541,2]
[400253183,1767225032622,-500.0,0.00011541,2]
[400253185,1767225032631,-500.0,0.00011541,2]
[400253187,1767225032641,-500.0,0.00011541,2]
[400253189,1767225032650,-500.0,0.00011541,2]
[400253191,1767225032660,-639.73567858,0.00011541,2]
[400253193,1767225032669,-500.0,0.00011541,2]
[400253195,1767225032678,-500.0,0.00011541,2]
[400253197,1767225032687,-500.0,0.00011541,2]
[400253199,1767225032696,-500.0,0.00011541,2]
[400253200,1767225032706,-500.0,0.00011541,2]
[400253202,1767225032715,-500.0,0.00011541,2]
[400253204,1767225032723,-500.0,0.00011541,2]
[400253206,1767225032733,-500.0,0.00011541,2]
[400253208,1767225032742,-500.0,0.00011541,2]
[400253210,1767225032751,-500.0,0.00011541,2]
[400253212,1767225032760,-500.0,0.00011541,2]
[400253214,1767225032769,-500.0,0.00011541,2]
[400253216,1767225032779,-500.0,0.00011541,2]
[400253217,1767225032789,-500.0,0.00011541,2]
[400253219,1767225032798,-710.6464278,0.00011541,2]
[400253221,1767225032808,-710.6464278,0.00011541,2]
[400253223,1767225032817,-710.6464278,0.00011541,2]
[400253225,1767225032826,-710.6464278,0.00011541,2]
[400253226,1767225032835,-710.6464278,0.00011541,2]
[400253228,1767225032844,-710.6464278,0.00011541,2]
[400253230,1767225032854,-710.6464278,0.00011541,2]
[400253231,1767225032863,-710.6464278,0.00011541,2]
[400253232,1767225032874,-710.6464278,0.00011541,2]
[400253233,1767225032883,-710.6464278,0.00011541,2]
[400253234,1767225032893,-710.6464278,0.00011541,2]
[400253235,1767225032902,-710.6464278,0.00011541,2]
[400253236,1767225032912,-710.6464278,0.00011541,2]
[400253237,1767225032922,-710.6464278,0.00011541,2]
[400253238,1767225032935,-710.6464278,0.00011541,2]
[400253239,1767225032945,-710.6464278,0.00011541,2]
[400253240,1767225032955,-403.21858455,0.00011541,2]
[400253241,1767225032964,-1926.45494702,0.00011541,2]
[400253253,1767225038510,-5000.0,0.00011425,2]
[400253254,1767225038521,-48073.54505298,0.00011541,2]
[400253255,1767225038531,-212.46250463,0.00011542,2]
[400253256,1767225038541,-500.0,0.00011542,2]
[400253257,1767225038551,-500.0,0.00011542,2]
[400253258,1767225038561,-500.0,0.00011542,2]
[400253259,1767225038571,-468.22461404,0.00011542,2]
[400253260,1767225038581,-500.0,0.00011542,2]
[400253261,1767225038591,-500.0,0.00011542,2]
[400253262,1767225038600,-500.0,0.00011542,2]
[400253263,1767225038610,-500.0,0.00011542,2]
[400253264,1767225038620,-500.0,0.00011542,2]
[400253265,1767225038630,-500.0,0.00011542,2]
[400253266,1767225038640,-327.77724118,0.00011542,2]
[400253267,1767225038650,-500.0,0.00011542,2]
[400253268,1767225038661,-500.0,0.00011542,2]
[400253269,1767225038670,-500.0,0.00011542,2]
[400253270,1767225038679,-500.0,0.00011542,2]
[400253271,1767225038689,-500.0,0.00011542,2]
[400253272,1767225038699,-500.0,0.00011542,2]
[400253273,1767225038708,-500.0,0.00011542,2]
[400253274,1767225038718,-500.0,0.00011542,2]
[400253275,1767225038728,-650.0,0.00011542,2]
[400253276,1767225038738,-500.0,0.00011542,2]
[400253277,1767225038747,-400.0,0.00011542,2]
[400253278,1767225038757,-500.0,0.00011542,2]
[400253279,1767225038767,-1708.49990471,0.00011542,2]
[400253280,1767225038780,-889718.1811007,0.00011543,2]
[400253281,1767225038791,-150.0,0.00012274,2]
[400253282,1767225038801,-6527.48,0.00012329,2]
[400253283,1767225038810,-5504.01,0.00012329,2]
[400253284,1767225038820,-4586.68,0.00012329,2]
[400253285,1767225038830,-3896.22,0.00012329,2]
[400253286,1767225038840,-3246.85,0.00012329,2]
[400253287,1767225038850,-2705.71,0.00012329,2]
[400253288,1767225038859,-2254.76,0.00012329,2]
[400253289,1767225038870,-1878.97,0.00012329,2]
[400253290,1767225038882,-1565.8,0.00012329,2]
[400253291,1767225038891,-1304.84,0.00012329,2]
[400253292,1767225038901,-1087.36,0.00012329,2]
[400253293,1767225038910,-906.14,0.00012329,2]
[400253294,1767225038920,-755.11,0.00012329,2]
[400253295,1767225038929,-696.47,0.00012329,2]
[400253296,1767225038939,-613.84,0.00012329,2]
[400253297,1767225038948,-511.54,0.00012329,2]
[400253298,1767225038958,-593.56,0.00012329,2]
[400253299,1767225038967,-494.63,0.00012329,2]
[400253300,1767225038977,-412.2,0.00012329,2]
[400253301,1767225038986,-343.5,0.00012329,2]
[400253302,1767225038995,-286.25,0.00012329,2]
[400253303,1767225039005,-238.54,0.00012329,2]
[400253304,1767225039014,-198.78,0.00012329,2]
[400253305,1767225039023,-165.65,0.00012329,2]
[400253306,1767225039033,-828.28,0.00012329,2]
[400253307,1767225039043,-253.12300422,0.00012359,2]
[400253308,1767225039053,-176.25411543,0.00012359,2]
[400253309,1767225039062,-500.0,0.00013273,2]
[400253310,1767225039071,-270.09,0.00013372,2]
[400253311,1767225039081,-177.0,0.00013414,2]
[400253312,1767225039091,-10338.05925145,0.0001354,2]
[400253313,1767225039103,-300.0,0.00013673,2]
[400253314,1767225039114,-500.0,0.00013698,2]
[400253315,1767225039123,-500.0,0.00013698,2]
[400253316,1767225039133,-500.0,0.00013698,2]
[400253317,1767225039142,-500.0,0.00013698,2]
[400253318,1767225039152,-500.0,0.00013698,2]
[400253319,1767225039162,-500.0,0.00013698,2]
[400253320,1767225039172,-287.11130988,0.00013698,2]
[400253321,1767225039182,-1000.0,0.00013699,2]
[400253322,1767225039191,-500.0,0.00013699,2]
[400253323,1767225039203,-548.39478916,0.00013699,2]
[400253324,1767225039213,-500.0,0.00013699,2]
[400253325,1767225039223,-500.0,0.00013699,2]
[400253326,1767225039232,-264.04332823,0.00013699,2]
[400253327,1767225039242,-1000.0,0.00013821,2]
[400253328,1767225039251,-5302.2787686,0.00013971,2]
[400253329,1767225039261,-500.0,0.00014247,2]
[400253330,1767225039271,-682.12203946,0.00014247,2]
[400253331,1767225039280,-405.14,0.00014486,2]
[400253332,1767225039290,-1708.49990471,0.00014675,2]
[400253333,1767225039300,-400.05,0.00015254,2]
[400253334,1767225039310,-1522.3472363,0.00015262,2]
[400253335,1767225039320,-3315.3468785,0.00015262,2]
[400253336,1767225039330,-204.0,0.00015414,2]
[400253337,1767225039339,-540.19,0.00015601,2]
[400253338,1767225039348,-388.99759292,0.00016438,2]
[400253339,1767225039357,-675.24,0.00016715,2]
[400253340,1767225039366,-219.71970525,0.00016814,2]
[400253341,1767225039376,-1522.3472363,0.00016894,2]
[400253342,1767225039385,-111296.1061893,0.00017,2]
[400253343,1767225039395,-151.0,0.00017,2]
[400253344,1767225039404,-151.0,0.00017,2]
[400253345,1767225039414,-151.0,0.00017,2]
[400253346,1767225039423,-151.0,0.00017,2]
[400253347,1767225039433,-151.0,0.00017,2]
[400253348,1767225039443,-151.0,0.00017,2]
[400253349,1767225039453,-151.0,0.00017,2]
[400253350,1767225039463,-151.0,0.00017,2]
[400253351,1767225039472,-169.466222,0.00017,2]
[400253352,1767225039482,-169.466222,0.00017,2]
[400253353,1767225039491,-169.466222,0.00017,2]
[400253354,1767225039501,-169.466222,0.00017,2]
[400253355,1767225039512,-550.492601,0.00017,2]
[400253356,1767225039522,-550.492601,0.00017,2]
[400253357,1767225039531,-550.492601,0.00017,2]
[400253358,1767225039541,-550.492601,0.00017,2]
[400253359,1767225039550,-612.575308,0.00017,2]
[400253360,1767225039559,-612.575308,0.00017,2]
[400253361,1767225039570,-612.575308,0.00017,2]
[400253362,1767225039579,-612.575308,0.00017,2]
[400253363,1767225039588,-739.7538799,0.00017198,2]
[400253364,1767225039598,-231.0,0.00017414,2]
[400253365,1767225039608,-1164.76799557,0.000176,2]
[400253366,1767225039617,-165.0614017,0.0001763,2]
[400253367,1767225039628,-1708.49990471,0.00017808,2]
[400253368,1767225039638,-810.28,0.00017829,2]
[400253369,1767225039647,-161547.99362009,0.00018,2]
[400253370,1767225039656,-8504.13693104,0.00018,2]
[400253371,1767225039666,-29972.34579107,0.00018,2]
[400253372,1767225039675,-153.327647,0.00018,2]
[400253373,1767225039684,-151.0,0.00018,2]
[400253374,1767225039694,-151.0,0.00018,2]
[400253375,1767225039703,-151.0,0.00018,2]
[400253376,1767225039713,-151.0,0.00018,2]
[400253377,1767225039723,-151.0,0.00018,2]
[400253378,1767225039733,-151.0,0.00018,2]
[400253379,1767225039742,-151.0,0.00018,2]
[400253380,1767225039751,-169.466222,0.00018,2]
[400253381,1767225039760,-169.466222,0.00018,2]
[400253382,1767225039770,-169.466222,0.00018,2]
[400253383,1767225039780,-169.466222,0.00018,2]
[400253384,1767225039789,-550.492601,0.00018,2]
[400253385,1767225039799,-550.492601,0.00018,2]
[400253386,1767225039808,-550.492601,0.00018,2]
[400253387,1767225039817,-550.492601,0.00018,2]
[400253388,1767225039827,-612.575308,0.00018,2]
[400253389,1767225039836,-612.575308,0.00018,2]
[400253390,1767225039846,-612.575308,0.00018,2]
[400253391,1767225039855,-612.575308,0.00018,2]
[400253392,1767225039864,-151.0,0.00018,2]
[400253393,1767225039877,-1041.66666667,0.00018033,2]
[400253394,1767225039887,-1522.3472363,0.00018526,2]
[400253395,1767225039897,-21812.59361102,0.000189,2]
[400253396,1767225039907,-945.33,0.00018944,2]
[400253397,1767225039918,-19449.27986838,0.00019,2]
[400253398,1767225039927,-151.0,0.00019178,2]
[400253399,1767225039937,-151.000017,0.00019178,2]
[400253400,1767225039946,-151.0,0.00019178,2]
[400253401,1767225039957,-151.0,0.00019178,2]
[400253402,1767225039967,-744.42,0.000192,2]
[400253403,1767225039976,-10692.68,0.000192,2]
[400253404,1767225039986,-150.00409153,0.00019336,2]
[400253405,1767225039995,-270.00736476,0.00019336,2]
[400253407,1767225040005,-261.71362843,0.00019336,2]
[400253409,1767225040014,-471.08453117,0.00019336,2]
[400253411,1767225040023,-836.64612736,0.00019336,2]
[400253413,1767225040033,-151.0,0.00019336,2]
[400253415,1767225040042,-258.0,0.00019414,2]
[400253417,1767225040052,-400.0,0.0002,2]
[400253419,1767225040061,-1080.38,0.00020058,2]
[400253421,1767225040070,-1522.3472363,0.00020157,2]
[400253423,1767225040079,-151.0,0.00020158,2]
[400253425,1767225040089,-151.0,0.00020158,2]
[400253427,1767225040099,-151.0,0.00020158,2]
[400253429,1767225040108,-151.0,0.00020158,2]
[400253431,1767225040117,-151.0,0.00020158,2]
[400253433,1767225040126,-169.466222,0.00020158,2]
[400253434,1767225040136,-169.466222,0.00020158,2]
[400253435,1767225040146,-169.466222,0.00020158,2]
[400253436,1767225040155,-169.466222,0.00020158,2]
[400253437,1767225040164,-550.492601,0.00020158,2]
[400253438,1767225040174,-550.492601,0.00020158,2]
[400253439,1767225040183,-550.492601,0.00020158,2]
[400253440,1767225040193,-550.492601,0.00020158,2]
[400253441,1767225040202,-612.575308,0.00020158,2]
[400253442,1767225040212,-612.575308,0.00020158,2]
[400253444,1767225040221,-612.575308,0.00020158,2]
[400253445,1767225040230,-612.575308,0.00020158,2]
[400253447,1767225040239,-151.0,0.00020158,2]
[400253450,1767225040248,-200.0,0.00020187,3]
[400253452,1767225040374,-200.0,0.00020187,3]
[400253454,1767225040383,-200.0,0.00020187,3]
[400253455,1767225040393,-200.0,0.00020187,3]
[400253457,1767225040402,-200.0,0.00020187,3]
[400253459,1767225040412,-200.0,0.00020187,3]
[400253460,1767225040422,-718.71577,0.00020187,2]
[400253461,1767225040431,-738.95612732,0.0002027,2]
[400253462,1767225040441,-197.45479757,0.00020667,2]
[400253463,1767225040450,-1708.49990471,0.0002094,2]
[400253464,1767225040460,-1215.42,0.00021172,2]
[400253465,1767225040469,-285.0,0.00021414,2]
[400253466,1767225040478,-1000.0,0.00021637,2]
[400253467,1767225040488,-1000.0,0.00021637,2]
[400253468,1767225040497,-160.0,0.00021637,2]
[400253469,1767225040507,-1000.0,0.00021637,2]
[400253470,1767225040517,-1000.0,0.00021637,2]
[400253471,1767225040526,-160.0,0.00021637,2]
[400253472,1767225040536,-160.0,0.00021637,2]
[400253473,1767225040545,-1000.0,0.00021637,2]
[400253474,1767225040555,-500.0,0.00021637,2]
[400253475,1767225040564,-160.0,0.00021637,2]
[400253476,1767225040574,-500.0,0.00021637,2]
[400253477,1767225040583,-1000.0,0.00021637,2]
[400253478,1767225040593,-500.0,0.00021637,2]
[400253479,1767225040602,-160.0,0.00021637,2]
[400253480,1767225040612,-500.0,0.00021637,2]
[400253481,1767225040621,-1000.0,0.00021637,2]
[400253482,1767225040631,-151.12503043,0.00021637,2]
[400253483,1767225040640,-500.0,0.00021637,2]
[400253484,1767225040649,-1000.0,0.00021637,2]
[400253485,1767225040659,-500.0,0.00021637,2]
[400253486,1767225040669,-500.0,0.00021637,2]
[400253487,1767225040678,-1000.0,0.00021637,2]
[400253488,1767225040687,-500.0,0.00021637,2]
[400253489,1767225040697,-500.0,0.00021637,2]
[400253490,1767225040707,-1000.0,0.00021637,2]
[400253491,1767225040716,-500.0,0.00021637,2]
[400253492,1767225040725,-500.0,0.00021637,2]
[400253493,1767225040735,-1000.0,0.00021637,2]
[400253494,1767225040744,-500.0,0.00021637,2]
[400253495,1767225040754,-500.0,0.00021637,2]
[400253496,1767225040764,-1000.0,0.00021637,2]
[400253497,1767225040773,-500.0,0.00021637,2]
[400253498,1767225040782,-500.0,0.00021637,2]
[400253499,1767225040792,-1000.0,0.00021637,2]
[400253500,1767225040802,-516.509709,0.00021637,2]
[400253501,1767225040811,-500.0,0.00021637,2]
[400253502,1767225040820,-250.0,0.00021637,2]
[400253503,1767225040830,-250.0,0.00021637,2]
[400253504,1767225040839,-500.0,0.00021637,2]
[400253505,1767225040848,-250.0,0.00021637,2]
[400253506,1767225040858,-500.0,0.00021637,2]
[400253507,1767225040867,-500.0,0.00021637,2]
[400253508,1767225040880,-250.0,0.00021637,2]
[400253509,1767225040890,-250.0,0.00021637,2]
[400253510,1767225040899,-500.0,0.00021637,2]
[400253511,1767225040909,-250.0,0.00021637,2]
[400253512,1767225040918,-500.0,0.00021637,2]
[400253513,1767225040927,-250.0,0.00021637,2]
[400253514,1767225040936,-500.0,0.00021637,2]
[400253515,1767225040946,-250.0,0.00021637,2]
[400253516,1767225040955,-335.77230478,0.00021637,2]